[Event "Titled Tuesday Blitz May 23 Late 2023"]
[White "Blitz"]
[Black "Luxama, Jacques Muller"]
[BlackFideId "11900113"]
[WhiteElo "2474"]
[BlackElo "1931"]
[Result "0-1"]
[Round "03"]
[TimeControl "180+2"]
[Date "2023.05.23"]
[WhiteClock "0:00:14"]
[BlackClock "0:01:17"]

1. d4 {[%clk 0:03:00]}  Nf6 {[%clk 0:02:59]} 2. Nc3 {[%clk 0:02:59]}  d5 {[%clk 0:02:58]} 3. Bf4 {[%clk 0:02:48]}  a6 {[%clk 0:02:56]} 4. e3 {[%clk 0:02:46]}  e6 {[%clk 0:02:56]} 5. Nf3 {[%clk 0:02:45]}  c5 {[%clk 0:02:55]} 6. Ne5 {[%clk 0:02:41]}  Nc6 {[%clk 0:02:53]} 7. Qf3 {[%clk 0:02:26]}  Bd7 {[%clk 0:02:49]} 8. Nxd7 {[%clk 0:02:24]}  Qxd7 {[%clk 0:02:46]} 9. dxc5 {[%clk 0:02:24]}  Bxc5 {[%clk 0:02:45]} 10. O-O-O {[%clk 0:02:24]}  Qe7 {[%clk 0:02:44]} 11. g4 {[%clk 0:02:18]}  Rc8 {[%clk 0:02:38]} 12. Kb1 {[%clk 0:02:10]}  Bb4 {[%clk 0:02:37]} 13. e4 {[%clk 0:02:01]}  Bxc3 {[%clk 0:02:34]} 14. Qxc3 {[%clk 0:02:02]}  O-O {[%clk 0:02:19]} 15. Qe3 {[%clk 0:01:42]}  Nxe4 {[%clk 0:02:14]} 16. Bd3 {[%clk 0:01:36]}  Nc5 {[%clk 0:02:07]} 17. Be2 {[%clk 0:01:17]}  e5 {[%clk 0:01:58]} 18. Bg3 {[%clk 0:00:53]}  d4 {[%clk 0:01:54]} 19. Qf3 {[%clk 0:00:53]}  e4 {[%clk 0:01:52]} 20. Qf5 {[%clk 0:00:51]}  g6 {[%clk 0:01:38]} 21. Qf4 {[%clk 0:00:48]}  d3 {[%clk 0:01:31]} 22. cxd3 {[%clk 0:00:44]}  exd3 {[%clk 0:01:31]} 23. Bxd3 {[%clk 0:00:33]}  Nxd3 {[%clk 0:01:28]} 24. Rxd3 {[%clk 0:00:34]}  Nb4 {[%clk 0:01:25]} 25. Rd6 {[%clk 0:00:20]}  Qe2 {[%clk 0:01:17]} 26. Qxb4 {[%clk 0:00:18]}  Qc2+ {[%clk 0:01:17]} 27. Ka1 {[%clk 0:00:14]}  Qc1+ {[%clk 0:01:16]} 28. Rxc1 {[%clk 0:00:14]}  Rxc1# {[%clk 0:01:17]} 0-1


[Site "https://www.chess.com"]

[Event "Titled Tuesday Blitz May 23 Late 2023"]
[White "Chakravarthi Reddy, M"]
[Black "Przybylski, Wojciech"]
[WhiteFideId "25009532"]
[BlackFideId "1117599"]
[WhiteElo "2201"]
[BlackElo "2222"]
[Result "0-1"]
[Round "03"]
[TimeControl "180+2"]
[Date "2023.05.23"]
[WhiteClock "0:00:00"]
[BlackClock "0:00:16"]

1. e4 {[%clk 0:03:00]}  c5 {[%clk 0:02:59]} 2. Nf3 {[%clk 0:03:01]}  e6 {[%clk 0:02:58]} 3. d4 {[%clk 0:03:01]}  cxd4 {[%clk 0:02:58]} 4. Nxd4 {[%clk 0:03:02]}  Nc6 {[%clk 0:02:58]} 5. Nc3 {[%clk 0:03:00]}  Qc7 {[%clk 0:02:58]} 6. Be2 {[%clk 0:02:59]}  a6 {[%clk 0:02:58]} 7. Nxc6 {[%clk 0:02:58]}  dxc6 {[%clk 0:02:57]} 8. O-O {[%clk 0:02:54]}  e5 {[%clk 0:02:57]} 9. f4 {[%clk 0:02:45]}  Bc5+ {[%clk 0:02:52]} 10. Kh1 {[%clk 0:02:45]}  Nf6 {[%clk 0:02:52]} 11. fxe5 {[%clk 0:02:45]}  Qxe5 {[%clk 0:02:51]} 12. Bf4 {[%clk 0:02:41]}  Qe6 {[%clk 0:02:50]} 13. Na4 {[%clk 0:02:17]}  Ba7 {[%clk 0:02:44]} 14. Bd6 {[%clk 0:02:11]}  Nxe4 {[%clk 0:02:42]} 15. Ba3 {[%clk 0:01:45]}  b5 {[%clk 0:02:24]} 16. Nc3 {[%clk 0:01:39]}  Nf2+ {[%clk 0:02:18]} 17. Rxf2 {[%clk 0:01:40]}  Bxf2 {[%clk 0:02:18]} 18. Bf3 {[%clk 0:01:26]}  Bh4 {[%clk 0:01:43]} 19. Qd4 {[%clk 0:01:16]}  Be7 {[%clk 0:01:33]} 20. Qxg7 {[%clk 0:00:53]}  Bf6 {[%clk 0:01:23]} 21. Qg3 {[%clk 0:00:38]}  Be5 {[%clk 0:01:17]} 22. Bxc6+ {[%clk 0:00:38]}  Bd7 {[%clk 0:01:10]} 23. Bxd7+ {[%clk 0:00:33]}  Kxd7 {[%clk 0:01:09]} 24. Rd1+ {[%clk 0:00:28]}  Kc8 {[%clk 0:01:03]} 25. Qf3 {[%clk 0:00:24]}  Ra7 {[%clk 0:00:59]} 26. Nd5 {[%clk 0:00:24]}  Kb8 {[%clk 0:00:48]} 27. c4 {[%clk 0:00:16]}  bxc4 {[%clk 0:00:37]} 28. Qe2 {[%clk 0:00:14]}  Rc8 {[%clk 0:00:34]} 29. b3 {[%clk 0:00:13]}  c3 {[%clk 0:00:33]} 30. Ne7 {[%clk 0:00:11]}  c2 {[%clk 0:00:24]} 31. Re1 {[%clk 0:00:12]}  Rxe7 {[%clk 0:00:22]} 32. Bxe7 {[%clk 0:00:07]}  Qxe7 {[%clk 0:00:22]} 33. Qxa6 {[%clk 0:00:00]}  Qb7 {[%clk 0:00:16]} 0-1


[Site "https://www.chess.com"]

[Event "Titled Tuesday Blitz May 23 Late 2023"]
[White "Thiel, Thomas"]
[Black "Srdanovic, Jovana"]
[WhiteFideId "4615964"]
[BlackFideId "954810"]
[WhiteElo "2224"]
[BlackElo "2169"]
[Result "0-1"]
[Round "03"]
[TimeControl "180+2"]
[Date "2023.05.23"]
[WhiteClock "0:00:00"]
[BlackClock "0:00:17"]

1. e4 {[%clk 0:03:00]}  e5 {[%clk 0:02:58]} 2. Nf3 {[%clk 0:02:58]}  Nc6 {[%clk 0:02:57]} 3. d4 {[%clk 0:02:57]}  exd4 {[%clk 0:02:56]} 4. Nxd4 {[%clk 0:02:58]}  Nf6 {[%clk 0:02:57]} 5. Nxc6 {[%clk 0:02:57]}  bxc6 {[%clk 0:02:57]} 6. e5 {[%clk 0:02:57]}  Qe7 {[%clk 0:02:51]} 7. Qe2 {[%clk 0:02:56]}  Nd5 {[%clk 0:02:51]} 8. h4 {[%clk 0:02:51]}  Qe6 {[%clk 0:02:42]} 9. g3 {[%clk 0:02:44]}  d6 {[%clk 0:02:31]} 10. Bh3 {[%clk 0:02:41]}  Qxe5 {[%clk 0:02:23]} 11. Qxe5+ {[%clk 0:02:37]}  dxe5 {[%clk 0:02:24]} 12. Bxc8 {[%clk 0:02:28]}  Rxc8 {[%clk 0:02:23]} 13. O-O {[%clk 0:02:28]}  Rb8 {[%clk 0:02:17]} 14. Re1 {[%clk 0:02:25]}  f6 {[%clk 0:02:08]} 15. a3 {[%clk 0:01:45]}  Kf7 {[%clk 0:01:51]} 16. c4 {[%clk 0:01:45]}  Nb6 {[%clk 0:01:45]} 17. b3 {[%clk 0:01:40]}  a5 {[%clk 0:01:41]} 18. a4 {[%clk 0:01:37]}  Bb4 {[%clk 0:01:37]} 19. Bd2 {[%clk 0:01:34]}  c5 {[%clk 0:01:37]} 20. Bxb4 {[%clk 0:01:08]}  cxb4 {[%clk 0:01:37]} 21. Nd2 {[%clk 0:01:06]}  Rbd8 {[%clk 0:01:27]} 22. Ne4 {[%clk 0:01:06]}  Rd4 {[%clk 0:01:18]} 23. Nc5 {[%clk 0:01:00]}  Nd7 {[%clk 0:01:00]} 24. Nb7 {[%clk 0:00:45]}  Ra8 {[%clk 0:00:58]} 25. Rad1 {[%clk 0:00:44]}  Rxd1 {[%clk 0:00:46]} 26. Rxd1 {[%clk 0:00:45]}  Ke7 {[%clk 0:00:45]} 27. Rd5 {[%clk 0:00:38]}  c6 {[%clk 0:00:20]} 28. Rxa5 {[%clk 0:00:36]}  Rxa5 {[%clk 0:00:20]} 29. Nxa5 {[%clk 0:00:34]}  Kd6 {[%clk 0:00:20]} 30. Kg2 {[%clk 0:00:14]}  Kc7 {[%clk 0:00:21]} 31. c5 {[%clk 0:00:11]}  Nxc5 {[%clk 0:00:20]} 32. h5 {[%clk 0:00:06]}  Ne6 {[%clk 0:00:20]} 33. Nc4 {[%clk 0:00:04]}  Nd4 {[%clk 0:00:19]} 34. Nd2 {[%clk 0:00:04]}  Kb6 {[%clk 0:00:18]} 35. g4 {[%clk 0:00:02]}  h6 {[%clk 0:00:16]} 36. Kg3 {[%clk 0:00:00]}  Kc5 {[%clk 0:00:17]} 0-1


[Site "https://www.chess.com"]

[Event "Titled Tuesday Blitz May 23 Late 2023"]
[White "Clawitter, Craig"]
[Black "Stork, Oliver"]
[WhiteFideId "2023105"]
[BlackFideId "12955728"]
[WhiteElo "2221"]
[BlackElo "2239"]
[Result "1-0"]
[Round "03"]
[TimeControl "180+2"]
[Date "2023.05.23"]
[WhiteClock "0:00:09"]
[BlackClock "0:00:23"]

1. e4 {[%clk 0:02:50]}  c6 {[%clk 0:02:50]} 2. d4 {[%clk 0:02:49]}  d5 {[%clk 0:02:50]} 3. e5 {[%clk 0:02:50]}  c5 {[%clk 0:02:50]} 4. dxc5 {[%clk 0:02:48]}  Nc6 {[%clk 0:02:50]} 5. Nf3 {[%clk 0:02:48]}  Bg4 {[%clk 0:02:50]} 6. c3 {[%clk 0:02:45]}  e6 {[%clk 0:02:50]} 7. Bb5 {[%clk 0:02:37]}  Ne7 {[%clk 0:02:47]} 8. Nbd2 {[%clk 0:02:33]}  a6 {[%clk 0:02:45]} 9. Bxc6+ {[%clk 0:02:26]}  Nxc6 {[%clk 0:02:44]} 10. Qa4 {[%clk 0:02:27]}  Bxf3 {[%clk 0:02:41]} 11. Nxf3 {[%clk 0:02:27]}  Bxc5 {[%clk 0:02:40]} 12. O-O {[%clk 0:02:26]}  O-O {[%clk 0:02:40]} 13. Qg4 {[%clk 0:02:17]}  Re8 {[%clk 0:02:18]} 14. Qh5 {[%clk 0:02:08]}  Bf8 {[%clk 0:02:12]} 15. Ng5 {[%clk 0:02:03]}  h6 {[%clk 0:02:02]} 16. Qxf7+ {[%clk 0:01:35]}  Kh8 {[%clk 0:02:02]} 17. Nxe6 {[%clk 0:01:35]}  Qe7 {[%clk 0:01:28]} 18. Qxe7 {[%clk 0:01:16]}  Rxe7 {[%clk 0:01:29]} 19. Nf4 {[%clk 0:01:11]}  Nxe5 {[%clk 0:01:25]} 20. Be3 {[%clk 0:01:10]}  Rd8 {[%clk 0:01:22]} 21. Bd4 {[%clk 0:00:58]}  Kh7 {[%clk 0:01:20]} 22. Rfe1 {[%clk 0:00:52]}  Nc6 {[%clk 0:00:59]} 23. Ne6 {[%clk 0:00:38]}  Rde8 {[%clk 0:00:53]} 24. Nxf8+ {[%clk 0:00:38]}  Rxf8 {[%clk 0:00:54]} 25. Rxe7 {[%clk 0:00:32]}  Nxe7 {[%clk 0:00:55]} 26. Bc5 {[%clk 0:00:32]}  Rf7 {[%clk 0:00:56]} 27. Rd1 {[%clk 0:00:21]}  Kg6 {[%clk 0:00:41]} 28. g3 {[%clk 0:00:16]}  Nc6 {[%clk 0:00:33]} 29. Rxd5 {[%clk 0:00:16]}  Rf6 {[%clk 0:00:28]} 30. f4 {[%clk 0:00:15]}  Rf5 {[%clk 0:00:22]} 31. Rxf5 {[%clk 0:00:14]}  Kxf5 {[%clk 0:00:23]} 32. Kg2 {[%clk 0:00:14]}  g6 {[%clk 0:00:23]} 33. Kf3 {[%clk 0:00:14]}  h5 {[%clk 0:00:23]} 34. h3 {[%clk 0:00:14]}  Ke6 {[%clk 0:00:23]} 35. g4 {[%clk 0:00:13]}  hxg4+ {[%clk 0:00:24]} 36. hxg4 {[%clk 0:00:14]}  Kd5 {[%clk 0:00:24]} 37. Bb6 {[%clk 0:00:11]}  Kc4 {[%clk 0:00:25]} 38. Ke4 {[%clk 0:00:10]}  a5 {[%clk 0:00:23]} 39. f5 {[%clk 0:00:10]}  gxf5+ {[%clk 0:00:23]} 40. gxf5 {[%clk 0:00:10]}  Nd8 {[%clk 0:00:23]} 41. Bxd8 {[%clk 0:00:09]} 1-0


[Site "https://www.chess.com"]

[Event "Titled Tuesday Blitz May 23 Late 2023"]
[White "Parizek, Vojtech"]
[Black "Yeritsyan, Hayk"]
[WhiteFideId "360996"]
[BlackFideId "13307320"]
[WhiteElo "2115"]
[BlackElo "2444"]
[Result "0-1"]
[Round "03"]
[TimeControl "180+2"]
[Date "2023.05.23"]
[WhiteClock "0:00:05"]
[BlackClock "0:00:43"]

1. e4 {[%clk 0:03:00]}  c6 {[%clk 0:02:59]} 2. d4 {[%clk 0:03:00]}  d5 {[%clk 0:03:00]} 3. exd5 {[%clk 0:03:01]}  cxd5 {[%clk 0:03:01]} 4. c4 {[%clk 0:03:01]}  Nf6 {[%clk 0:03:02]} 5. Nc3 {[%clk 0:03:01]}  Nc6 {[%clk 0:03:02]} 6. Nf3 {[%clk 0:02:59]}  a6 {[%clk 0:03:03]} 7. cxd5 {[%clk 0:02:55]}  Nxd5 {[%clk 0:03:03]} 8. Bd3 {[%clk 0:02:54]}  Bg4 {[%clk 0:03:02]} 9. Be4 {[%clk 0:02:32]}  e6 {[%clk 0:02:56]} 10. Be3 {[%clk 0:02:21]}  Be7 {[%clk 0:02:55]} 11. O-O {[%clk 0:02:20]}  O-O {[%clk 0:02:55]} 12. a3 {[%clk 0:02:13]}  Bf6 {[%clk 0:02:50]} 13. Qd3 {[%clk 0:02:11]}  g6 {[%clk 0:02:41]} 14. Rad1 {[%clk 0:01:51]}  Nce7 {[%clk 0:02:34]} 15. h3 {[%clk 0:01:42]}  Bf5 {[%clk 0:02:34]} 16. Ne5 {[%clk 0:01:41]}  Bxe4 {[%clk 0:02:27]} 17. Nxe4 {[%clk 0:01:42]}  Bg7 {[%clk 0:02:27]} 18. Qb3 {[%clk 0:01:22]}  Qb6 {[%clk 0:02:21]} 19. Qxb6 {[%clk 0:01:09]}  Nxb6 {[%clk 0:02:22]} 20. Rc1 {[%clk 0:00:59]}  Nbd5 {[%clk 0:02:20]} 21. Nd6 {[%clk 0:00:51]}  b5 {[%clk 0:02:09]} 22. Rc5 {[%clk 0:00:47]}  Rad8 {[%clk 0:02:02]} 23. Nb7 {[%clk 0:00:40]}  Rb8 {[%clk 0:01:56]} 24. Nd6 {[%clk 0:00:40]}  Rb6 {[%clk 0:01:45]} 25. Ne4 {[%clk 0:00:34]}  h6 {[%clk 0:01:42]} 26. Nd7 {[%clk 0:00:33]}  Rbb8 {[%clk 0:01:37]} 27. Rfc1 {[%clk 0:00:29]}  Rfd8 {[%clk 0:01:31]} 28. Nxb8 {[%clk 0:00:29]}  Rxb8 {[%clk 0:01:32]} 29. Nd6 {[%clk 0:00:24]}  Bf8 {[%clk 0:01:29]} 30. Nc8 {[%clk 0:00:22]}  Nf5 {[%clk 0:01:23]} 31. Rc6 {[%clk 0:00:22]}  Nfxe3 {[%clk 0:01:20]} 32. fxe3 {[%clk 0:00:23]}  Nxe3 {[%clk 0:01:21]} 33. Rxa6 {[%clk 0:00:23]}  b4 {[%clk 0:01:21]} 34. axb4 {[%clk 0:00:23]}  Rxb4 {[%clk 0:01:21]} 35. Ra2 {[%clk 0:00:19]}  Rxd4 {[%clk 0:01:19]} 36. Nb6 {[%clk 0:00:15]}  Rb4 {[%clk 0:01:13]} 37. Na4 {[%clk 0:00:13]}  Nd5 {[%clk 0:01:12]} 38. Nc3 {[%clk 0:00:13]}  Nf4 {[%clk 0:01:04]} 39. Ra8 {[%clk 0:00:11]}  Kg7 {[%clk 0:01:03]} 40. Rc2 {[%clk 0:00:10]}  Be7 {[%clk 0:01:01]} 41. Nd1 {[%clk 0:00:08]}  Bf6 {[%clk 0:01:00]} 42. Kh1 {[%clk 0:00:07]}  Rd4 {[%clk 0:00:59]} 43. Ra1 {[%clk 0:00:05]}  Rb4 {[%clk 0:00:56]} 44. Rb1 {[%clk 0:00:05]}  h5 {[%clk 0:00:54]} 45. b3 {[%clk 0:00:06]}  Nd3 {[%clk 0:00:52]} 46. Rc4 {[%clk 0:00:06]}  Rb5 {[%clk 0:00:51]} 47. b4 {[%clk 0:00:06]}  Be7 {[%clk 0:00:46]} 48. Nc3 {[%clk 0:00:05]}  Rxb4 {[%clk 0:00:45]} 49. Rcxb4 {[%clk 0:00:06]}  Bxb4 {[%clk 0:00:45]} 50. Rd1 {[%clk 0:00:05]}  Nf2+ {[%clk 0:00:43]} 51. Kh2 {[%clk 0:00:05]}  Nxd1 {[%clk 0:00:43]} 0-1


[Site "https://www.chess.com"]

[Event "Titled Tuesday Blitz May 23 Late 2023"]
[White "Rodriguez, Santiago"]
[Black "Liu, Kelsey"]
[WhiteFideId "3000591"]
[BlackFideId "30944481"]
[WhiteElo "2249"]
[BlackElo "2214"]
[Result "1-0"]
[Round "03"]
[TimeControl "180+2"]
[Date "2023.05.23"]
[WhiteClock "0:01:19"]
[BlackClock "0:01:19"]

1. d4 {[%clk 0:03:00]}  Nf6 {[%clk 0:03:00]} 2. Bg5 {[%clk 0:03:00]}  c5 {[%clk 0:02:54]} 3. d5 {[%clk 0:02:59]}  Qb6 {[%clk 0:02:52]} 4. Nc3 {[%clk 0:02:59]}  h6 {[%clk 0:02:45]} 5. Bd2 {[%clk 0:02:54]}  e6 {[%clk 0:02:42]} 6. e4 {[%clk 0:02:53]}  exd5 {[%clk 0:02:30]} 7. e5 {[%clk 0:02:53]}  Ne4 {[%clk 0:02:27]} 8. Nxd5 {[%clk 0:02:51]}  Qd8 {[%clk 0:02:03]} 9. Nf3 {[%clk 0:02:42]}  Nc6 {[%clk 0:01:59]} 10. Bc4 {[%clk 0:02:39]}  d6 {[%clk 0:01:48]} 11. Qe2 {[%clk 0:02:36]}  Nxd2 {[%clk 0:01:48]} 12. exd6+ {[%clk 0:02:31]}  Be6 {[%clk 0:01:47]} 13. Nc7+ {[%clk 0:02:23]}  Kd7 {[%clk 0:01:36]} 14. Bxe6+ {[%clk 0:02:15]}  Kxd6 {[%clk 0:01:35]} 15. Nb5+ {[%clk 0:02:03]}  Ke7 {[%clk 0:01:30]} 16. Bb3+ {[%clk 0:01:49]}  Kf6 {[%clk 0:01:28]} 17. Nxd2 {[%clk 0:01:41]}  Bd6 {[%clk 0:01:24]} 18. Ne4+ {[%clk 0:01:33]}  Kg6 {[%clk 0:01:19]} 19. Qg4+ {[%clk 0:01:19]} 1-0


[Site "https://www.chess.com"]

[Event "Titled Tuesday Blitz May 23 Late 2023"]
[White "Vega Gutierrez, Sabrina"]
[Black "Arias Igual, Alejandro"]
[WhiteFideId "2219026"]
[BlackFideId "2254905"]
[WhiteElo "2209"]
[BlackElo "2179"]
[Result "1-0"]
[Round "03"]
[TimeControl "180+2"]
[Date "2023.05.23"]
[WhiteClock "0:00:06"]
[BlackClock "0:00:17"]

1. e4 {[%clk 0:02:56]}  c5 {[%clk 0:02:59]} 2. Nf3 {[%clk 0:02:53]}  g6 {[%clk 0:02:59]} 3. d4 {[%clk 0:02:53]}  cxd4 {[%clk 0:02:59]} 4. Nxd4 {[%clk 0:02:53]}  Nc6 {[%clk 0:03:00]} 5. c4 {[%clk 0:02:51]}  Nf6 {[%clk 0:02:59]} 6. Nc3 {[%clk 0:02:50]}  d6 {[%clk 0:02:59]} 7. Be2 {[%clk 0:02:50]}  Nxd4 {[%clk 0:02:59]} 8. Qxd4 {[%clk 0:02:50]}  Bg7 {[%clk 0:02:59]} 9. O-O {[%clk 0:02:49]}  O-O {[%clk 0:03:00]} 10. Qd3 {[%clk 0:02:49]}  Bd7 {[%clk 0:02:55]} 11. Be3 {[%clk 0:02:18]}  Bc6 {[%clk 0:02:54]} 12. b4 {[%clk 0:02:14]}  b6 {[%clk 0:02:45]} 13. Rac1 {[%clk 0:02:03]}  Nd7 {[%clk 0:02:43]} 14. Bd4 {[%clk 0:01:59]}  Rc8 {[%clk 0:02:34]} 15. Bxg7 {[%clk 0:01:51]}  Kxg7 {[%clk 0:02:35]} 16. f4 {[%clk 0:01:52]}  Qc7 {[%clk 0:02:22]} 17. Bg4 {[%clk 0:01:49]}  e5 {[%clk 0:02:09]} 18. Bxd7 {[%clk 0:01:43]}  Qxd7 {[%clk 0:02:03]} 19. b5 {[%clk 0:01:34]}  Bb7 {[%clk 0:01:48]} 20. fxe5 {[%clk 0:01:34]}  Qc7 {[%clk 0:01:39]} 21. exd6 {[%clk 0:01:18]}  Qxc4 {[%clk 0:01:37]} 22. Qe3 {[%clk 0:01:14]}  Qc5 {[%clk 0:01:27]} 23. Qxc5 {[%clk 0:00:46]}  Rxc5 {[%clk 0:01:28]} 24. Rfd1 {[%clk 0:00:26]}  Kf6 {[%clk 0:01:24]} 25. Nd5+ {[%clk 0:00:24]}  Bxd5 {[%clk 0:01:23]} 26. Rxc5 {[%clk 0:00:24]}  bxc5 {[%clk 0:01:23]} 27. Rxd5 {[%clk 0:00:24]}  Ke6 {[%clk 0:01:17]} 28. Kf2 {[%clk 0:00:12]}  Rd8 {[%clk 0:01:13]} 29. Ke3 {[%clk 0:00:09]}  Rxd6 {[%clk 0:00:48]} 30. Rxd6+ {[%clk 0:00:09]}  Kxd6 {[%clk 0:00:49]} 31. Kd3 {[%clk 0:00:10]}  Kc7 {[%clk 0:00:25]} 32. Kc4 {[%clk 0:00:09]}  Kb6 {[%clk 0:00:26]} 33. e5 {[%clk 0:00:09]}  h6 {[%clk 0:00:24]} 34. h4 {[%clk 0:00:06]}  h5 {[%clk 0:00:23]} 35. g3 {[%clk 0:00:06]}  Kb7 {[%clk 0:00:21]} 36. Kxc5 {[%clk 0:00:06]}  Kc7 {[%clk 0:00:17]} 37. a4 {[%clk 0:00:06]} 1-0


[Site "https://www.chess.com"]

[Event "Titled Tuesday Blitz May 23 Late 2023"]
[White "Kovacevic, Radmila"]
[Black "Grossboss19"]
[WhiteFideId "933171"]
[WhiteElo "2194"]
[BlackElo "2399"]
[Result "0-1"]
[Round "03"]
[TimeControl "180+2"]
[Date "2023.05.23"]
[WhiteClock "0:00:00"]
[BlackClock "0:00:02"]

1. e4 {[%clk 0:03:00]}  d6 {[%clk 0:02:53]} 2. d4 {[%clk 0:03:00]}  Nf6 {[%clk 0:02:53]} 3. Nc3 {[%clk 0:03:00]}  c6 {[%clk 0:02:51]} 4. f4 {[%clk 0:03:00]}  Na6 {[%clk 0:02:48]} 5. a3 {[%clk 0:02:44]}  Bg4 {[%clk 0:02:44]} 6. Nf3 {[%clk 0:02:42]}  g6 {[%clk 0:02:38]} 7. h3 {[%clk 0:02:39]}  Bxf3 {[%clk 0:02:38]} 8. Qxf3 {[%clk 0:02:39]}  Bg7 {[%clk 0:02:37]} 9. g4 {[%clk 0:02:35]}  Qc7 {[%clk 0:02:32]} 10. e5 {[%clk 0:02:30]}  Nd7 {[%clk 0:02:30]} 11. Be3 {[%clk 0:02:23]}  dxe5 {[%clk 0:02:17]} 12. fxe5 {[%clk 0:02:17]}  e6 {[%clk 0:02:10]} 13. Ne4 {[%clk 0:02:13]}  Bf8 {[%clk 0:02:09]} 14. Bg5 {[%clk 0:02:06]}  Be7 {[%clk 0:01:57]} 15. Bxe7 {[%clk 0:02:06]}  Kxe7 {[%clk 0:01:58]} 16. Bxa6 {[%clk 0:02:00]}  bxa6 {[%clk 0:01:55]} 17. Qg3 {[%clk 0:01:54]}  h6 {[%clk 0:01:51]} 18. Qh4+ {[%clk 0:01:50]}  g5 {[%clk 0:01:50]} 19. Qf2 {[%clk 0:01:50]}  Raf8 {[%clk 0:01:45]} 20. Qd2 {[%clk 0:01:40]}  Rb8 {[%clk 0:01:37]} 21. b4 {[%clk 0:01:36]}  f6 {[%clk 0:01:32]} 22. exf6+ {[%clk 0:01:11]}  Nxf6 {[%clk 0:01:29]} 23. Nxf6 {[%clk 0:01:09]}  Qg3+ {[%clk 0:01:25]} 24. Kd1 {[%clk 0:01:06]}  Qf3+ {[%clk 0:01:17]} 25. Kc1 {[%clk 0:01:03]}  Qxh1+ {[%clk 0:01:09]} 26. Kb2 {[%clk 0:01:03]}  Qf3 {[%clk 0:01:08]} 27. Nh5 {[%clk 0:00:58]}  Rhd8 {[%clk 0:00:59]} 28. Re1 {[%clk 0:00:55]}  Rd6 {[%clk 0:00:52]} 29. Re3 {[%clk 0:00:46]}  Qd5 {[%clk 0:00:48]} 30. Ng3 {[%clk 0:00:37]}  Kd7 {[%clk 0:00:24]} 31. c3 {[%clk 0:00:37]}  c5 {[%clk 0:00:20]} 32. Ne4 {[%clk 0:00:35]}  cxd4 {[%clk 0:00:17]} 33. Nf6+ {[%clk 0:00:31]}  Kd8 {[%clk 0:00:13]} 34. Nxd5 {[%clk 0:00:30]}  dxe3 {[%clk 0:00:13]} 35. Qxe3 {[%clk 0:00:28]}  exd5 {[%clk 0:00:13]} 36. Qxa7 {[%clk 0:00:25]}  Rc8 {[%clk 0:00:13]} 37. Qg7 {[%clk 0:00:24]}  Rc7 {[%clk 0:00:12]} 38. Qf8+ {[%clk 0:00:20]}  Kd7 {[%clk 0:00:12]} 39. Qf5+ {[%clk 0:00:20]}  Kc6 {[%clk 0:00:12]} 40. c4 {[%clk 0:00:20]}  dxc4 {[%clk 0:00:10]} 41. Qc5+ {[%clk 0:00:19]}  Kd7 {[%clk 0:00:11]} 42. Qf5+ {[%clk 0:00:19]}  Re6 {[%clk 0:00:09]} 43. Kc3 {[%clk 0:00:19]}  Ke7 {[%clk 0:00:08]} 44. Qh7+ {[%clk 0:00:17]}  Kd6 {[%clk 0:00:07]} 45. Qg8 {[%clk 0:00:13]}  Re3+ {[%clk 0:00:07]} 46. Kc2 {[%clk 0:00:14]}  c3 {[%clk 0:00:04]} 47. Qd8+ {[%clk 0:00:13]}  Kc6 {[%clk 0:00:03]} 48. Qa8+ {[%clk 0:00:11]}  Kd7 {[%clk 0:00:03]} 49. Qd5+ {[%clk 0:00:10]}  Ke7 {[%clk 0:00:03]} 50. Qg2 {[%clk 0:00:07]}  Re6 {[%clk 0:00:03]} 51. Qf1 {[%clk 0:00:05]}  Rf6 {[%clk 0:00:03]} 52. Qe2+ {[%clk 0:00:05]}  Kf7 {[%clk 0:00:04]} 53. Qe3 {[%clk 0:00:05]}  Kg7 {[%clk 0:00:03]} 54. Qd4 {[%clk 0:00:05]}  Kf7 {[%clk 0:00:03]} 55. Qd5+ {[%clk 0:00:05]}  Re6 {[%clk 0:00:03]} 56. Qf5+ {[%clk 0:00:05]}  Ke7 {[%clk 0:00:04]} 57. Qf1 {[%clk 0:00:05]}  Re5 {[%clk 0:00:03]} 58. Qf2 {[%clk 0:00:04]}  Ke6 {[%clk 0:00:03]} 59. Qf1 {[%clk 0:00:03]}  Kd7 {[%clk 0:00:04]} 60. Qxa6 {[%clk 0:00:03]}  Rd5 {[%clk 0:00:03]} 61. Qf1 {[%clk 0:00:02]}  Rd2+ {[%clk 0:00:03]} 62. Kc1 {[%clk 0:00:01]}  Rd6 {[%clk 0:00:02]} 63. Qf5+ {[%clk 0:00:02]}  Kc6 {[%clk 0:00:02]} 64. b5+ {[%clk 0:00:01]}  Kb6 {[%clk 0:00:02]} 65. a4 {[%clk 0:00:01]}  c2 {[%clk 0:00:02]} 66. Qf2+ {[%clk 0:00:01]}  Kb7 {[%clk 0:00:01]} 67. Qg2+ {[%clk 0:00:00]}  Kb8 {[%clk 0:00:02]} 0-1


[Site "https://www.chess.com"]

[Event "Titled Tuesday Blitz May 23 Late 2023"]
[White "Qiao, Cindy"]
[Black "Chlpik, Martin"]
[WhiteFideId "2620243"]
[BlackFideId "14923351"]
[WhiteElo "1777"]
[BlackElo "2109"]
[Result "1-0"]
[Round "03"]
[TimeControl "180+2"]
[Date "2023.05.23"]
[WhiteClock "0:00:36"]
[BlackClock "0:00:00"]

1. d4 {[%clk 0:03:00]}  d5 {[%clk 0:02:57]} 2. Bf4 {[%clk 0:03:01]}  c5 {[%clk 0:02:55]} 3. e3 {[%clk 0:03:01]}  Nc6 {[%clk 0:02:54]} 4. Nf3 {[%clk 0:03:01]}  Qb6 {[%clk 0:02:53]} 5. Nbd2 {[%clk 0:02:59]}  cxd4 {[%clk 0:02:51]} 6. exd4 {[%clk 0:02:39]}  Bg4 {[%clk 0:02:51]} 7. Nb3 {[%clk 0:02:23]}  a5 {[%clk 0:02:38]} 8. a4 {[%clk 0:02:16]}  e6 {[%clk 0:02:27]} 9. Bb5 {[%clk 0:02:13]}  Nf6 {[%clk 0:02:02]} 10. O-O {[%clk 0:02:07]}  Be7 {[%clk 0:02:00]} 11. c3 {[%clk 0:01:55]}  O-O {[%clk 0:02:00]} 12. Nbd2 {[%clk 0:01:48]}  Nh5 {[%clk 0:01:56]} 13. Be3 {[%clk 0:01:41]}  Na7 {[%clk 0:01:53]} 14. h3 {[%clk 0:01:35]}  Bxf3 {[%clk 0:01:47]} 15. Qxf3 {[%clk 0:01:34]}  Nf6 {[%clk 0:01:29]} 16. c4 {[%clk 0:01:32]}  Nxb5 {[%clk 0:01:21]} 17. cxb5 {[%clk 0:01:33]}  Rac8 {[%clk 0:01:17]} 18. Rfc1 {[%clk 0:01:31]}  Bd6 {[%clk 0:01:15]} 19. Nb3 {[%clk 0:01:25]}  Ne4 {[%clk 0:01:03]} 20. Qe2 {[%clk 0:01:17]}  Rc7 {[%clk 0:00:55]} 21. f3 {[%clk 0:01:12]}  Ng3 {[%clk 0:00:49]} 22. Qe1 {[%clk 0:01:12]}  Nf5 {[%clk 0:00:46]} 23. Bf2 {[%clk 0:01:09]}  Bf4 {[%clk 0:00:38]} 24. Rxc7 {[%clk 0:01:03]}  Bxc7 {[%clk 0:00:39]} 25. Rc1 {[%clk 0:01:02]}  Qd6 {[%clk 0:00:38]} 26. Qe5 {[%clk 0:00:42]}  Qxe5 {[%clk 0:00:31]} 27. dxe5 {[%clk 0:00:43]}  Bxe5 {[%clk 0:00:31]} 28. Nxa5 {[%clk 0:00:43]}  d4 {[%clk 0:00:20]} 29. Nxb7 {[%clk 0:00:38]}  Rb8 {[%clk 0:00:13]} 30. Nc5 {[%clk 0:00:37]}  Rd8 {[%clk 0:00:00]} 31. Nd3 {[%clk 0:00:36]} 1-0


[Site "https://www.chess.com"]